Cogmind - Beta 13 @@@ ROGUE MODE // 2024.04.04 @ 10:26:29 Player: redbart Result: Destroyed by Y-45 Defender with Heavy Assault Rifle Performance ------------- Evolutions (2) 1000 Regions Visited (5) 1000 Robots Destroyed (19) 95 Value Destroyed (449) 449 Prototype IDs (0) 0 Alien Tech Used (0) 0 Bonus (0) 0 TOTAL SCORE: 2544 Bonus ------- None Cogmind --------- Core Integrity 0/550 Matter 297/300 Energy 100/100 System Corruption 4% Temperature Cool (9) Movement Core (50) Location -8/Storage Parts ------- > --- POWER (2) -------- (None) > --- PROPULSION (4) --- (None) > --- UTILITY (3) ------ Trap Scanner > --- WEAPON (2) ------- (None) > --- INVENTORY (5) ---- Light Ion Engine Flight Unit Flight Unit Large Storage Unit Signal Interpreter Peak State ------------ > --- POWER ------------ Ion Engine Light Ion Engine > --- PROPULSION ------- Light Treads Light Treads Light Treads > --- UTILITY ---------- Small Storage Unit Structural Scanner Seismic Detector > --- WEAPON ----------- Assault Rifle Enhanced Flamer > --- INVENTORY -------- Ion Engine Compact Wheel Flight Unit Flight Unit Flight Unit Signal Interpreter Grenade Launcher [Rating: 12] Favorites ----------- Power Light Ion Engine Engine Light Ion Engine Propulsion Light Treads Treads Light Treads Wheel Compact Wheel Flight Unit Flight Unit Utility Small Storage Unit Device Seismic Detector Storage Small Storage Unit Weapon Assault Rifle Energy Gun Small Laser Ballistic Gun Assault Rifle Launcher Grenade Launcher Special Weapon Enhanced Flamer Build | -11 -10 -9 -9 -8 -8 ------- Run | Yrd Mat Mat Min Mat Sto Slots Evolved 4 | . . 2 . 2 . Power 1 | . . . . 1 . Propulsion 2 | . . 1 . 1 . Utility 1 | . . 1 . . . Weapon . | . . . . . . Parts Attached 26 | 7 2 3 1 4 9 Power 4 | . 1 1 . 1 1 Engine 4 | . 1 1 . 1 1 Core . | . . . . . . Reactor . | . . . . . . Propulsion 7 | 2 . 1 . . 4 Treads 3 | 2 . 1 . . . Leg . | . . . . . . Wheel 1 | . . . . . 1 Hover . | . . . . . . Flight 3 | . . . . . 3 Utility 6 | 1 1 1 . 2 1 Device 4 | . 1 1 . 1 1 Storage 2 | 1 . . . 1 . Processor . | . . . . . . Hackware . | . . . . . . Protection . | . . . . . . Artifact . | . . . . . . Weapon 9 | 4 . . 1 1 3 Energy Gun 1 | 1 . . . . . Energy Cannon . | . . . . . . Ballistic Gun 6 | 3 . . . . 3 Ballistic Cannon . | . . . . . . Launcher 1 | . . . . 1 . Special Weapon 1 | . . . 1 . . Impact Weapon . | . . . . . . Slashing Weapon . | . . . . . . Piercing Weapon . | . . . . . . Special Melee Weapon . | . . . . . . Unidentified Prototypes . | . . . . . . Parts Lost 16 | . . 1 . 8 7 Power 4 | . . 1 . 2 1 Propulsion 4 | . . . . 3 1 Utility 2 | . . . . . 2 Weapon 6 | . . . . 3 3 Highest Loss Streak 8 | . . 1 . 8 7 To Critical Strikes . | . . . . . . Average Slot Usage (%) 88 | . 89 95 99 73 37 Engine 10 | . 9 11 11 15 4 Treads 27 | . 28 29 33 21 . Device 17 | . 8 22 22 17 16 Storage 10 | . 14 11 11 9 . Ballistic Gun 15 | . 28 22 11 4 4 Special Weapon 4 | . . . 10 5 . Naked Turns . | . . . . . . Heaviest Build 35 | 8 12 13 14 35 9 Greatest Support 60 | 40 40 60 60 60 12 Greatest Overweight (x) 8 | . . . . 8 2 Average Overweight (x) . | . . . . . . Largest Inventory Capacity 15 | 8 8 8 8 15 15 Average Capacity 8 | 7 8 8 8 14 5 Most Carried 8 | 5 8 8 8 8 5 Average Carried 6 | 2 5 7 7 6 3 Final Capacity 15 | 8 8 8 8 15 5 Final Carried 8 | 3 8 8 8 6 5 Class Distribution -------------------- 100% | Mutant Dominant Class ---------------- Mutant | -10/Materials Mutant | -9/Materials Mutant | -9/Mines Mutant | -8/Materials Mutant | -8/Storage Resources | -11 -10 -9 -9 -8 -8 ----------- Run | Yrd Mat Mat Min Mat Sto Matter Collected 588 | 206 157 52 37 . 136 Remotely . | . . . . . . Salvage Created 491 | . 164 52 102 97 76 Parts 41 | . 19 4 6 4 8 Haulers Intercepted . | . . . . . . Recyclers Shooed 1 | . . . 1 . . Parts Field Recycled . | . . . . . . Retrieved Matter . | . . . . . . Parts Self-Destructed . | . . . . . . Prevented . | . . . . . . Kills | -11 -10 -9 -9 -8 -8 ------- Run | Yrd Mat Mat Min Mat Sto Combat Hostiles Destroyed 16 | . 5 1 3 3 4 Melee 1 | . . . . . 1 Guns 9 | . 5 1 . . 3 Cannons 3 | . . . 3 . . AOE 3 | . . . . 3 . Classes Destroyed 7 | . 3 1 1 1 1 Worker 1 | . . . . . 1 Recycler 1 | . . . 1 . . Watcher 1 | . 1 . . . . Swarmer 9 | . 2 . 3 . 4 Grunt 5 | . 3 . . 2 . Sentry 1 | . . 1 . . . Hunter 1 | . . . . 1 . Best Kill Streak 4 | . 2 1 3 3 4 Combat Bots Only 4 | . 2 1 3 3 4 Max Kills in Single Turn 1 | . 1 1 1 1 1 Gunslinging . | . . . . . . Exploded 1 | . . . . 1 . Melee 1 | . . . . . 1 Uniques/NPCs Destroyed . | . . . . . . Combat | -11 -10 -9 -9 -8 -8 -------- Run | Yrd Mat Mat Min Mat Sto Hostile Shots Fired 210 | . 33 10 22 51 94 Missed 63 | . 7 4 11 20 21 Damage Taken 1855 | . 244 86 98 574 853 Core 603 | . 36 15 . 70 482 Absorbed by Shields . | . . . . . . Core Remaining (%) 93 | 100 85 . 96 . . Volleys Fired 62 | . 20 5 9 7 21 Largest 2 | . 2 2 2 2 1 Hottest 110 | . 40 40 100 110 20 Shots Fired 97 | . 40 10 18 8 21 Gun 80 | . 40 10 9 . 21 Cannon . | . . . . . . Launcher 7 | . . . . 7 . Special 10 | . . . 9 1 . Kinetic 80 | . 40 10 9 . 21 Thermal 10 | . . . 9 1 . Explosive 7 | . . . . 7 . Electromagnetic . | . . . . . . Robot Hit Streak 7 | . 7 3 3 3 6 Robot Miss Streak 7 | . 3 2 7 1 3 Penetration Max . | . . . . . . Secondary Targets 2 | . 2 . . . . Max Gunslinging Chain 1 | . 1 . . . . Shots Hit Robots 54 | . 24 5 8 3 14 Core Hits 36 | . 11 3 5 6 11 Critical Kills . | . . . . . . Critical Parts Destroyed . | . . . . . . Critical Strikes 1 | . . . 1 . . Burn 1 | . . . 1 . . Melee Attacks . | . . . . . . Impact . | . . . . . . Slashing . | . . . . . . Piercing . | . . . . . . Sneak Attacks . | . . . . . . Combat Hostiles . | . . . . . . Follow-up Attacks . | . . . . . . Damage Inflicted 905 | . 248 51 109 357 140 Guns 454 | . 248 51 33 . 122 Cannons . | . . . . . . Explosions 357 | . . . . 357 . Melee . | . . . . . . Ramming 18 | . . . . . 18 Kinetic 454 | . 248 51 33 . 122 Thermal 203 | . . . 76 127 . Explosive 230 | . . . . 230 . Electromagnetic . | . . . . . . Impact . | . . . . . . Slashing . | . . . . . . Piercing . | . . . . . . Highest Corruption 4 | . . . . . 4 Average Corruption 3 | . . . . . 3 Corruption Purged . | . . . . . . Corruption Blocked . | . . . . . . Effects 2 | . . . . . 2 Matter Fused 1 | . . . . . 1 Heat Flow Errors 1 | . . . . . 1 Overload Shots . | . . . . . . Overflow Damage 28 | . . . . 28 . Projectiles . | . . . . . . Explosions 28 | . . . . 28 . Melee . | . . . . . . Knockbacks . | . . . . . . Impact . | . . . . . . Kinetic . | . . . . . . Secondary . | . . . . . . Self-Inflicted Damage 66 | . . . . 58 8 Shots 1 | . . . . 1 . Rammed 5 | . . . . . 5 Targets Rammed 5 | . . . . . 5 Kicked . | . . . . . . Crushed . | . . . . . . Highest Temperature 199 | . 12 6 52 45 199 Average Temperature 33 | . 7 4 26 18 98 Received Heat Transfer 567 | . 72 27 . 225 243 Siege Activations . | . . . . . . Robots Corrupted . | . . . . . . Combat Hostiles . | . . . . . . Parts Fried . | . . . . . . Impact Corruptions . | . . . . . . Robots Melted . | . . . . . . Combat Hostiles . | . . . . . . Parts Melted 3 | . . . 3 . . Heat Transferred 820 | . . . 720 100 . Parts Sabotaged . | . . . . . . Parts Stolen . | . . . . . . Parts Stripped . | . . . . . . Power Chain Reactions . | . . . . . . Alert | -11 -10 -9 -9 -8 -8 ------- Run | Yrd Mat Mat Min Mat Sto Peak Influence 164 | . 142 94 126 143 164 Initial 59 | . . 59 36 . 39 Average 54 | . 43 89 61 45 103 Maximum Alert Level . | . . . . . . Low Security (%) 100 | 100 100 100 100 100 100 Level 1 . | . . . . . . Level 2 . | . . . . . . Level 3 . | . . . . . . Level 4 . | . . . . . . Level 5 . | . . . . . . High Security . | . . . . . . Max Security . | . . . . . . Squads Dispatched 4 | . 2 . . 2 . Investigation 2 | . 2 . . . . Extermination . | . . . . . . Reinforcement 2 | . . . . 2 . Assault . | . . . . . . Garrison . | . . . . . . Intercept . | . . . . . . Searches Triggered . | . . . . . . Construction Impeded 1 | . . . . 1 . Haulers Reinforced . | . . . . . . Active Scanning Responses . | . . . . . . Cargo Convoy Interrupts . | . . . . . . Stealth | -11 -10 -9 -9 -8 -8 --------- Run | Yrd Mat Mat Min Mat Sto Distress Signals 2 | . . . . . 2 Communications Jammed . | . . . . . . Distress Signals . | . . . . . . Times Spotted 28 | . 9 1 3 5 10 Peak Tracking Total 7 | . 3 1 3 4 7 Tactical Retreats 1 | . . . . . 1 Traps | -11 -10 -9 -9 -8 -8 ------- Run | Yrd Mat Mat Min Mat Sto Traps Triggered 3 | . 2 . . 1 . Indirectly . | . . . . . . Trap Hack Attempts . | . . . . . . Triggered . | . . . . . . Disarmed . | . . . . . . Reprogrammed . | . . . . . . Reused . | . . . . . . Traps Extracted . | . . . . . . Installed . | . . . . . . Triggered . | . . . . . . Machines | -11 -10 -9 -9 -8 -8 ---------- Run | Yrd Mat Mat Min Mat Sto Machines Disabled 4 | . . . . 4 . Max in Single Turn 2 | . . . . 2 . Machines Repaired . | . . . . . . Machines Dismantled . | . . . . . . Machines Sabotaged . | . . . . . . Overloaded Fab Kills . | . . . . . . Hacking | -11 -10 -9 -9 -8 -8 --------- Run | Yrd Mat Mat Min Mat Sto Machines Accessed 6 | . 4 1 . . 1 Terminals 5 | . 3 1 . . 1 Fabricators . | . . . . . . Repair Stations . | . . . . . . Recycling Units 1 | . 1 . . . . Scanalyzers . | . . . . . . Garrison Access . | . . . . . . Total Hacks 9 | . 6 2 . . 1 Successful 3 | . 2 1 . . . Failed 6 | . 4 1 . . 1 Catastrophic . | . . . . . . Database Lockouts . | . . . . . . Manual 2 | . 1 . . . 1 Terminals 8 | . 5 2 . . 1 Fabricators . | . . . . . . Repair Stations . | . . . . . . Recycling Units 1 | . 1 . . . . Scanalyzers . | . . . . . . Garrison Access . | . . . . . . Terminal Hacks 2 | . 1 1 . . . Alert Level 1 | . . 1 . . . Transport Status 1 | . 1 . . . . Fabricator Hacks . | . . . . . . Repair Station Hacks . | . . . . . . Recycling Unit Hacks 1 | . 1 . . . . Report Inventory 1 | . 1 . . . . Scanalyzer . | . . . . . . Garrison Access Hacks . | . . . . . . Unauthorized Hacks . | . . . . . . Terminals . | . . . . . . Fabricators . | . . . . . . Repair Stations . | . . . . . . Recycling Units . | . . . . . . Scanalyzers . | . . . . . . Garrison Access . | . . . . . . Data Cores Recovered . | . . . . . . Used . | . . . . . . Hacking Detections 4 | . 3 . . . 1 Full Trace Events 1 | . 1 . . . . Feedback Events . | . . . . . . Feedback Blocked . | . . . . . . Robot Schematics Acquired . | . . . . . . Robots Built . | . . . . . . Authchips . | . . . . . . Time . | . . . . . . Total Robot Build Rating . | . . . . . . Part Schematics Acquired . | . . . . . . Parts Built . | . . . . . . Authchips . | . . . . . . Time . | . . . . . . Total Part Build Rating . | . . . . . . Parts Repaired . | . . . . . . Time . | . . . . . . Parts Recycled . | . . . . . . Recycled Matter . | . . . . . . Retrieved Matter . | . . . . . . Retrieved Components . | . . . . . . Parts Scanalyzed . | . . . . . . Part Schematics Acquired . | . . . . . . Parts Damaged . | . . . . . . Bothacking | -11 -10 -9 -9 -8 -8 ------------ Run | Yrd Mat Mat Min Mat Sto Used RIF Installer . | . . . . . . Robots Hacked . | . . . . . . Non-combat . | . . . . . . Combat . | . . . . . . Robot Hacks Applied . | . . . . . . Relay Couplers Released . | . . . . . . Fabnet Peak Effective % . | . . . . . . Robots Rewired . | . . . . . . Allies Hacked . | . . . . . . Hacks Repelled . | . . . . . . Allies | -11 -10 -9 -9 -8 -8 -------- Run | Yrd Mat Mat Min Mat Sto Total Allies . | . . . . . . Largest Group . | . . . . . . Highest-Rated Group . | . . . . . . Highest-Rated Ally . | . . . . . . Total Orders . | . . . . . . Ally Attacks . | . . . . . . Total Damage . | . . . . . . Kills . | . . . . . . Allies Corrupted . | . . . . . . Allies Melted . | . . . . . . Intel | -11 -10 -9 -9 -8 -8 ------- Run | Yrd Mat Mat Min Mat Sto Robot Analysis Total . | . . . . . . Derelict Logs Recovered 1 | . . . 1 . . Drone Launches . | . . . . . . Drone Recoveries . | . . . . . . Exploration | -11 -10 -9 -9 -8 -8 ------------- Run | Yrd Mat Mat Min Mat Sto Turns Passed 1540 | 175 361 164 558 174 108 Spaces Moved 911 | 110 183 91 326 77 124 Core 39 | 14 . . . 7 18 Treads 766 | 96 183 91 326 70 . Legs . | . . . . . . Wheels . | . . . . . . Hover . | . . . . . . Flight 106 | . . . . . 106 Fastest Speed 34 | 50 160 160 160 160 34 Average Speed 144 | 146 160 160 160 188 37 Slowest Speed 450 | 160 160 160 160 450 150 Overloaded Moves . | . . . . . . Propulsion Burnouts . | . . . . . . Robots Hopped 3 | . . . . . 3 Cave-ins Triggered . | . . . . . . Exploration Rate (%) 23 | 6 39 9 57 10 22 Regions Visited 5 Branch Regions 2 Pre-discovered Areas 1 | . . . 1 . . Known Exits Taken . | . . . . . . Unknown Exits Taken 5 | 1 1 1 1 1 . Scrap Searched 3 | . . . 3 . . Spaces Dug . | . . . . . . Terrain Destroyed 26 | . . . . 26 . Melee . | . . . . . . Projectile . | . . . . . . AOE 26 | . . . . 26 . Terrain Rammed . | . . . . . . Walls Destroyed . | . . . . . . Machines Disabled . | . . . . . . Actions | -11 -10 -9 -9 -8 -8 --------- Run | Yrd Mat Mat Min Mat Sto Total 1045 | 124 215 101 338 100 167 Wait 17 | . 4 . . 9 4 Move 901 | 109 182 90 325 76 119 Hop 2 | . . . . . 2 Pick Up 23 | 7 7 3 1 2 3 Fast Attach 4 | 1 . . 1 . 2 Attach 21 | 5 2 3 . 4 7 Detach 4 | 1 . . . . 3 Swap 1 | 1 . . . . . Drop 5 | . . . 2 2 1 Fire 62 | . 20 5 9 7 21 Melee . | . . . . . . Ram 5 | . . . . . 5 Kick . | . . . . . . Crush . | . . . . . . Escape Stasis . | . . . . . . Rewire . | . . . . . . Trap . | . . . . . . Miscellaneous . | . . . . . . Route ------- -11/Scrapyard -10/Materials (discovered 2 exits: *Mat x2) -9/Materials -9/Mines -8/Materials -8/Storage History --------- Turn | Location | Event 22 | -11/Scrapyard | Discovered new exit (range 15) 176 | -11/Scrapyard | Entered Materials 308 | -10/Materials | Build established: Mutant 383 | -10/Materials | Discovered new exit (range 15) 509 | -10/Materials | Discovered new exit (range 16) 537 | -10/Materials | Entered another Materials area 537 | -9/Materials | Evolved 2 slots: Propulsion x1, Utility x1 658 | -9/Materials | Discovered new exit (range 4) 701 | -9/Materials | Entered Mines 716 | -9/Mines | A weapon hastily lodged in a ceiling crevice suddenly fell to the ground 1136 | -9/Mines | Learned location of Storage (-8) 1189 | -9/Mines | Discovered new exit (range 11) 1259 | -9/Mines | Entered Materials 1259 | -8/Materials | Evolved 2 slots: Power x1, Propulsion x1 1395 | -8/Materials | Discovered new exit (range 11) 1433 | -8/Materials | Entered Storage 1449 | -8/Storage | Lost 8 parts (2p3n3w) 1508 | -8/Storage | Core integrity fell below 50% 1529 | -8/Storage | Core integrity fell below 20% 1541 | -8/Storage | Destroyed by Y-45 Defender with Heavy Assault Rifle Last Messages --------------- K-01 Serf collects debris. R-06 Scavenger destroyed. K-01 Serf collects debris. Acquired Lgt. Assault Rifle. Lgt. Assault Rifle destroyed. K-01 Serf collects debris. Critical hit (Burn: +37). K-01 Serf collects debris. System corrupted: Heat flow error (+210). Critical hit (Burn: +37). K-01 Serf collects debris. K-01 Serf destroyed. Lgt. Assault Rifle destroyed. Acquired 89 matter. Slammed into Y-45 Defender. Destabilizing: System interference. Trap Scanner temporarily disabled. Slammed into Y-45 Defender. Trap Scanner broken. Destabilizing: Short circuit. Map ----- +----------------------------------------------------+ | ?????????????????????????????????????????????????? | | ?????????????????????????????????????????????????? | | ?????????????????????????????????????????????????? | | ?????????????????????????????????????????????????? | | ?????????????????????????????????????????????????? | | ?????????????????????????????????????????????????? | | ?????????????????????????????????????????????????? | | ?????????????????????????????????????????????????? | | ?????????????????????????????????????????????????? | | ?????????????????????????????????????????????????? | | ?????????????????????????????????????????????????? | | ?????????????????????????????????????????????????? | | ?????????????????????????????????????????????????? | | ?????????????????????????????????????????????????? | | ?????????????????????????????????????????????????? | | ???????????????????? ??????????????????????? | | ????????????????????######T??????????????????????? | | ????????????????????##"""##??#######?????????????? | | ??????????????????? ##"R"################## ##???? | | ??????????????????? ##" "###### #########+##???? | | ??????????????????? # w% # # ##???? | | ??????????????????? # * =*% # # ""???? | | ??????## ##?????? #!= = Y # # Y"???? | | ??????## ##?????? # """ """r# # ?????? | | ??????## +?????? # """ """ + + """ "????????? | | ??????## ##?????? # """@""" # # """ "????????? | | ??????## ##?????? # Y # # ?????????????? | | ??????## ##?????? # # # ????????????? | | ??????## ##?????? ########### ###????????????? | | ?????? + ##??????### # ##????????????? | | ?????? # ##???????## # ##????????????? | | ######## ########### """ + ##????????????? | | ######## ########### """ # =##????????????? | | # # == / """ # #############?? | | """ # # = # """ ## ################?? | | """ # # # """ ## ?? | | """ # # # / ?? | | + + #####T#### ?? | | """ # # ###########+#############???? | | """ # # ####### #########???? | | """ # # + / ! ##??????????? | | # ################# % ##??????????? | | ######## ################# ##??????????? | | # ##?????????????## ##??????????? | | # ##?????????????## ##??????????? | | # ##?????????????## ##??????????? | | #############?????????????## !! ##??????????? | | #############?????????????#############??????????? | | ??????????????????????????#############??????????? | | ?????????????????????????????????????????????????? | +----------------------------------------------------+ Best States ------------- Heat Dissipation 31 Energy Generation 15 Energy Capacity 275 Matter Stores 300 Matter Capacity 300 Sight Range 16 Terrain Scan Density 10 Evasion (%) 63 Recoil Reduction 3 Item Schematics ----------------- None Robot Schematics ------------------ None Fabricated ------------ Nothing Alien Tech Used ----------------- None Achievements -------------- Fist Fight Challenges ------------ None Game ------ Seed GunPointyFilter Manual? 0 Play Time 00:21:02 Cumulative 1.7 hours Start 2024.04.04 @ 10:06:02 End 2024.04.04 @ 10:26:29 Sessions 1 Manual Loads 0 Difficulty Rogue Special Mode None Game No. 4 Rogue 4 Adventurer 0 Explorer 0 Win Type - Total 0 Types 0/0/0/0/0/0/0/0/0 Lore% 2 Gallery% 3 Achievement% 5 Wizard Run 0 Options --------- Layout 1 ASCII 0 Keyboard 0 Movement Mouse Keybinds 0 Fullscreen 1 Font 24/Smallcaps Map View 50x35 Zoom Use 0% Tactical HUD 0 Map Filters NONE Filters NONE Steam 1 RUN: 7e9bdee2-7944-4a55-926f-b17e7cb9b7ba